[Event "Titled Tuesday Blitz November 15 Early 2022"]
[White "Artemenko, Oleg"]
[Black "Gurvich, Vitaly"]
[WhiteFideId "14201798"]
[BlackFideId "24164852"]
[WhiteElo "2287"]
[BlackElo "2342"]
[Result "0-1"]
[Round "07"]
[TimeControl "180+1"]
[Date "2022.11.16"]
[WhiteClock "0:00:18"]
[BlackClock "0:00:04"]

1. d4 {[%clk 0:03:00]}  Nf6 {[%clk 0:02:58]} 2. Nc3 {[%clk 0:03:01]}  d5 {[%clk 0:02:56]} 3. Bf4 {[%clk 0:03:01]}  c6 {[%clk 0:02:54]} 4. e3 {[%clk 0:03:01]}  Bf5 {[%clk 0:02:51]} 5. f3 {[%clk 0:03:00]}  e6 {[%clk 0:02:27]} 6. g4 {[%clk 0:03:00]}  Bg6 {[%clk 0:02:26]} 7. h4 {[%clk 0:02:59]}  h5 {[%clk 0:02:26]} 8. g5 {[%clk 0:02:58]}  Nfd7 {[%clk 0:02:26]} 9. Bd3 {[%clk 0:02:59]}  Bxd3 {[%clk 0:02:26]} 10. Qxd3 {[%clk 0:02:59]}  g6 {[%clk 0:02:27]} 11. Nge2 {[%clk 0:02:58]}  Bg7 {[%clk 0:02:18]} 12. e4 {[%clk 0:02:57]}  Nb6 {[%clk 0:02:15]} 13. O-O-O {[%clk 0:02:47]}  O-O {[%clk 0:02:14]} 14. Be5 {[%clk 0:02:41]}  Nc4 {[%clk 0:02:05]} 15. Bxg7 {[%clk 0:02:38]}  Kxg7 {[%clk 0:02:06]} 16. f4 {[%clk 0:02:35]}  Nd6 {[%clk 0:01:54]} 17. f5 {[%clk 0:02:25]}  exf5 {[%clk 0:01:47]} 18. exf5 {[%clk 0:02:25]}  Nxf5 {[%clk 0:01:47]} 19. Nf4 {[%clk 0:02:25]}  Qd7 {[%clk 0:01:35]} 20. Rde1 {[%clk 0:02:14]}  Na6 {[%clk 0:01:34]} 21. Re5 {[%clk 0:02:10]}  Nd6 {[%clk 0:01:31]} 22. Nce2 {[%clk 0:01:56]}  Rae8 {[%clk 0:01:16]} 23. Qf3 {[%clk 0:01:48]}  Qg4 {[%clk 0:00:57]} 24. Qf2 {[%clk 0:01:35]}  Ne4 {[%clk 0:00:43]} 25. Rxe4 {[%clk 0:01:31]}  Rxe4 {[%clk 0:00:38]} 26. Rg1 {[%clk 0:01:31]}  Qd7 {[%clk 0:00:29]} 27. Nxh5+ {[%clk 0:01:29]}  gxh5 {[%clk 0:00:29]} 28. Qf6+ {[%clk 0:01:29]}  Kg8 {[%clk 0:00:30]} 29. g6 {[%clk 0:01:29]}  Rg4 {[%clk 0:00:30]} 30. g7 {[%clk 0:01:17]}  Rxg1+ {[%clk 0:00:12]} 31. Nxg1 {[%clk 0:01:18]}  Re8 {[%clk 0:00:12]} 32. Qh6 {[%clk 0:01:19]}  f6 {[%clk 0:00:12]} 33. Nf3 {[%clk 0:01:15]}  Qf5 {[%clk 0:00:11]} 34. Qh8+ {[%clk 0:01:13]}  Kf7 {[%clk 0:00:10]} 35. Qxe8+ {[%clk 0:01:14]}  Kxe8 {[%clk 0:00:11]} 36. g8=Q+ {[%clk 0:01:14]}  Ke7 {[%clk 0:00:12]} 37. Qg7+ {[%clk 0:01:02]}  Kd8 {[%clk 0:00:06]} 38. Qf8+ {[%clk 0:00:56]}  Kc7 {[%clk 0:00:04]} 39. Qe7+ {[%clk 0:00:53]}  Kb6 {[%clk 0:00:04]} 40. Nd2 {[%clk 0:00:37]}  Qf4 {[%clk 0:00:04]} 41. c3 {[%clk 0:00:32]}  Nc7 {[%clk 0:00:03]} 42. a4 {[%clk 0:00:32]}  a5 {[%clk 0:00:03]} 43. Kc2 {[%clk 0:00:28]}  Na6 {[%clk 0:00:03]} 44. Qd8+ {[%clk 0:00:27]}  Ka7 {[%clk 0:00:02]} 45. Qxa5 {[%clk 0:00:27]}  Qxh4 {[%clk 0:00:03]} 46. b3 {[%clk 0:00:26]}  Qg4 {[%clk 0:00:02]} 47. b4 {[%clk 0:00:25]}  Qf5+ {[%clk 0:00:03]} 48. Kc1 {[%clk 0:00:25]}  b6 {[%clk 0:00:01]} 49. b5 {[%clk 0:00:25]}  bxa5 {[%clk 0:00:01]} 50. bxc6 {[%clk 0:00:25]}  Kb6 {[%clk 0:00:01]} 51. c4 {[%clk 0:00:25]}  Kc7 {[%clk 0:00:02]} 52. cxd5 {[%clk 0:00:26]}  Qf4 {[%clk 0:00:03]} 53. Kc2 {[%clk 0:00:25]}  Qd6 {[%clk 0:00:03]} 54. Ne4 {[%clk 0:00:23]}  Qxd5 {[%clk 0:00:03]} 55. Nxf6 {[%clk 0:00:24]}  Qxc6+ {[%clk 0:00:04]} 56. Kd3 {[%clk 0:00:24]}  Qxf6 {[%clk 0:00:04]} 57. d5 {[%clk 0:00:24]}  Kd6 {[%clk 0:00:05]} 58. Kc4 {[%clk 0:00:24]}  h4 {[%clk 0:00:06]} 59. Kb5 {[%clk 0:00:24]}  Nb4 {[%clk 0:00:07]} 60. Kb6 {[%clk 0:00:23]}  Nxd5+ {[%clk 0:00:08]} 61. Kb7 {[%clk 0:00:23]}  Qa1 {[%clk 0:00:05]} 62. Ka6 {[%clk 0:00:20]}  Qxa4 {[%clk 0:00:05]} 63. Kb7 {[%clk 0:00:20]}  Qb5+ {[%clk 0:00:05]} 64. Kc8 {[%clk 0:00:20]}  Qc6+ {[%clk 0:00:04]} 65. Kb8 {[%clk 0:00:19]}  Qc7+ {[%clk 0:00:04]} 66. Ka8 {[%clk 0:00:18]}  Nb6# {[%clk 0:00:04]} 0-1


[Site "https://www.chess.com"]

[Event "Titled Tuesday Blitz November 15 Early 2022"]
[White "Avila Rodriguez, Joshua Ad"]
[Black "Makhmudov, Shukhrat"]
[WhiteFideId "5126444"]
[BlackFideId "14200775"]
[WhiteElo "2125"]
[BlackElo "2135"]
[Result "0-1"]
[Round "07"]
[TimeControl "180+1"]
[Date "2022.11.16"]
[WhiteClock "0:00:05"]
[BlackClock "0:00:15"]

1. e4 {[%clk 0:03:00]}  e5 {[%clk 0:03:00]} 2. Nf3 {[%clk 0:03:00]}  Nc6 {[%clk 0:03:00]} 3. Bb5 {[%clk 0:03:00]}  a6 {[%clk 0:03:01]} 4. Ba4 {[%clk 0:03:00]}  Nf6 {[%clk 0:03:00]} 5. O-O {[%clk 0:03:01]}  Be7 {[%clk 0:03:00]} 6. Re1 {[%clk 0:03:01]}  b5 {[%clk 0:03:01]} 7. Bb3 {[%clk 0:03:01]}  O-O {[%clk 0:03:01]} 8. a4 {[%clk 0:03:01]}  Rb8 {[%clk 0:02:57]} 9. axb5 {[%clk 0:02:53]}  axb5 {[%clk 0:02:57]} 10. d3 {[%clk 0:02:54]}  d6 {[%clk 0:02:52]} 11. Nc3 {[%clk 0:02:52]}  Bg4 {[%clk 0:02:50]} 12. h3 {[%clk 0:02:52]}  Bxf3 {[%clk 0:02:50]} 13. gxf3 {[%clk 0:02:49]}  Nd4 {[%clk 0:02:50]} 14. f4 {[%clk 0:02:40]}  Nd7 {[%clk 0:02:31]} 15. Nd5 {[%clk 0:02:37]}  Nxb3 {[%clk 0:02:25]} 16. cxb3 {[%clk 0:02:34]}  f5 {[%clk 0:01:55]} 17. f3 {[%clk 0:02:29]}  fxe4 {[%clk 0:01:54]} 18. dxe4 {[%clk 0:02:27]}  c6 {[%clk 0:01:53]} 19. Nxe7+ {[%clk 0:02:04]}  Qxe7 {[%clk 0:01:53]} 20. f5 {[%clk 0:01:49]}  Qh4 {[%clk 0:01:44]} 21. Kh2 {[%clk 0:01:40]}  Nf6 {[%clk 0:01:18]} 22. Rg1 {[%clk 0:01:36]}  d5 {[%clk 0:01:13]} 23. Rg2 {[%clk 0:01:30]}  Rb7 {[%clk 0:01:10]} 24. Bg5 {[%clk 0:01:29]}  Qh5 {[%clk 0:01:06]} 25. Qc2 {[%clk 0:01:14]}  Qxf3 {[%clk 0:00:55]} 26. Qxc6 {[%clk 0:00:57]}  Rbf7 {[%clk 0:00:54]} 27. Bxf6 {[%clk 0:00:50]}  Rxf6 {[%clk 0:00:52]} 28. Qxd5+ {[%clk 0:00:50]}  Kh8 {[%clk 0:00:51]} 29. Rag1 {[%clk 0:00:35]}  Rxf5 {[%clk 0:00:45]} 30. Rxg7 {[%clk 0:00:25]}  Qf4+ {[%clk 0:00:28]} 31. R1g3 {[%clk 0:00:21]}  Qf2+ {[%clk 0:00:20]} 32. Rg2 {[%clk 0:00:21]}  Qf4+ {[%clk 0:00:20]} 33. R7g3 {[%clk 0:00:21]}  Rg5 {[%clk 0:00:18]} 34. Qxb5 {[%clk 0:00:17]}  Rfg8 {[%clk 0:00:18]} 35. Qd3 {[%clk 0:00:16]}  Rh5 {[%clk 0:00:18]} 36. Qf3 {[%clk 0:00:13]}  Rxh3+ {[%clk 0:00:16]} 37. Kg1 {[%clk 0:00:11]}  Rhxg3 {[%clk 0:00:16]} 38. Rxg3 {[%clk 0:00:05]}  Rxg3+ {[%clk 0:00:15]} 0-1


[Site "https://www.chess.com"]

[Event "Titled Tuesday Blitz November 15 Early 2022"]
[White "Begunov, Konstantin"]
[Black "Dias, Joao Batista"]
[WhiteFideId "4118510"]
[BlackFideId "2108240"]
[WhiteElo "2140"]
[BlackElo "1898"]
[Result "1-0"]
[Round "07"]
[TimeControl "180+1"]
[Date "2022.11.16"]
[WhiteClock "0:00:16"]
[BlackClock "0:00:04"]

1. d4 {[%clk 0:03:00]}  d5 {[%clk 0:02:59]} 2. c4 {[%clk 0:03:01]}  c6 {[%clk 0:02:58]} 3. Nc3 {[%clk 0:03:01]}  Nf6 {[%clk 0:02:58]} 4. Nf3 {[%clk 0:03:02]}  Bf5 {[%clk 0:02:58]} 5. cxd5 {[%clk 0:03:01]}  cxd5 {[%clk 0:02:58]} 6. Qb3 {[%clk 0:03:01]}  e6 {[%clk 0:02:54]} 7. Qxb7 {[%clk 0:02:58]}  Nbd7 {[%clk 0:02:54]} 8. e3 {[%clk 0:02:53]}  Be7 {[%clk 0:02:52]} 9. Qa6 {[%clk 0:02:48]}  O-O {[%clk 0:02:51]} 10. Bd3 {[%clk 0:02:48]}  Bxd3 {[%clk 0:02:50]} 11. Qxd3 {[%clk 0:02:49]}  Rb8 {[%clk 0:02:44]} 12. O-O {[%clk 0:02:48]}  Qc7 {[%clk 0:02:44]} 13. b3 {[%clk 0:02:46]}  h6 {[%clk 0:02:40]} 14. Bb2 {[%clk 0:02:45]}  Rfc8 {[%clk 0:02:27]} 15. Rfc1 {[%clk 0:02:46]}  Qb6 {[%clk 0:02:25]} 16. Na4 {[%clk 0:02:44]}  Qd8 {[%clk 0:02:22]} 17. Qa6 {[%clk 0:02:34]}  Rc7 {[%clk 0:01:52]} 18. Rxc7 {[%clk 0:02:29]}  Qxc7 {[%clk 0:01:51]} 19. Rc1 {[%clk 0:02:30]}  Qb7 {[%clk 0:01:50]} 20. Qxb7 {[%clk 0:02:17]}  Rxb7 {[%clk 0:01:48]} 21. Rc8+ {[%clk 0:02:17]}  Kh7 {[%clk 0:01:47]} 22. h3 {[%clk 0:02:08]}  Ne4 {[%clk 0:01:40]} 23. Kf1 {[%clk 0:02:03]}  g5 {[%clk 0:01:39]} 24. Ke2 {[%clk 0:02:02]}  Kg7 {[%clk 0:01:16]} 25. Nc5 {[%clk 0:01:37]}  Ndxc5 {[%clk 0:00:53]} 26. dxc5+ {[%clk 0:01:38]}  Bf6 {[%clk 0:00:53]} 27. c6 {[%clk 0:01:25]}  Rb6 {[%clk 0:00:45]} 28. Nd4 {[%clk 0:00:50]}  Nd6 {[%clk 0:00:39]} 29. Ra8 {[%clk 0:00:29]}  a6 {[%clk 0:00:39]} 30. c7 {[%clk 0:00:27]}  Kg6 {[%clk 0:00:33]} 31. c8=Q {[%clk 0:00:26]}  Nxc8 {[%clk 0:00:33]} 32. Rxc8 {[%clk 0:00:27]}  a5 {[%clk 0:00:30]} 33. Ra8 {[%clk 0:00:23]}  e5 {[%clk 0:00:26]} 34. Nf3 {[%clk 0:00:21]}  Rc6 {[%clk 0:00:23]} 35. Kd2 {[%clk 0:00:20]}  Kf5 {[%clk 0:00:21]} 36. Rxa5 {[%clk 0:00:19]}  Rd6 {[%clk 0:00:19]} 37. Rb5 {[%clk 0:00:17]}  h5 {[%clk 0:00:19]} 38. a4 {[%clk 0:00:16]}  g4 {[%clk 0:00:19]} 39. hxg4+ {[%clk 0:00:17]}  hxg4 {[%clk 0:00:20]} 40. Ne1 {[%clk 0:00:17]}  Ke4 {[%clk 0:00:19]} 41. a5 {[%clk 0:00:16]}  Bg5 {[%clk 0:00:18]} 42. Rb6 {[%clk 0:00:15]}  Rd7 {[%clk 0:00:17]} 43. g3 {[%clk 0:00:16]}  d4 {[%clk 0:00:17]} 44. Ke2 {[%clk 0:00:14]}  d3+ {[%clk 0:00:17]} 45. Kd2 {[%clk 0:00:13]}  f5 {[%clk 0:00:15]} 46. Rb4+ {[%clk 0:00:14]}  Kd5 {[%clk 0:00:13]} 47. Nxd3 {[%clk 0:00:14]}  f4 {[%clk 0:00:13]} 48. gxf4 {[%clk 0:00:14]}  exf4 {[%clk 0:00:13]} 49. Nxf4+ {[%clk 0:00:15]}  Bxf4 {[%clk 0:00:13]} 50. Rxf4 {[%clk 0:00:15]}  Kc5+ {[%clk 0:00:13]} 51. Kc2 {[%clk 0:00:16]}  Kb5 {[%clk 0:00:13]} 52. Bc3 {[%clk 0:00:16]}  Rg7 {[%clk 0:00:11]} 53. b4 {[%clk 0:00:15]}  Rg6 {[%clk 0:00:10]} 54. Kb3 {[%clk 0:00:16]}  g3 {[%clk 0:00:10]} 55. Rf5+ {[%clk 0:00:15]}  Ka6 {[%clk 0:00:07]} 56. b5+ {[%clk 0:00:16]}  Kb7 {[%clk 0:00:07]} 57. Rf7+ {[%clk 0:00:17]}  Kb8 {[%clk 0:00:06]} 58. fxg3 {[%clk 0:00:17]}  Rg5 {[%clk 0:00:04]} 59. Kc4 {[%clk 0:00:16]} 1-0


[Site "https://www.chess.com"]

[Event "Titled Tuesday Blitz November 15 Early 2022"]
[White "Broca Jimenez, Fernando"]
[Black "Rosh Jain"]
[WhiteFideId "5104742"]
[BlackFideId "25789465"]
[WhiteElo "2062"]
[BlackElo "2233"]
[Result "0-1"]
[Round "07"]
[TimeControl "180+1"]
[Date "2022.11.16"]
[WhiteClock "0:00:07"]
[BlackClock "0:00:21"]

1. e4 {[%clk 0:03:00]}  c5 {[%clk 0:02:54]} 2. c3 {[%clk 0:03:00]}  d5 {[%clk 0:02:54]} 3. exd5 {[%clk 0:03:01]}  Qxd5 {[%clk 0:02:55]} 4. d4 {[%clk 0:03:01]}  Nf6 {[%clk 0:02:52]} 5. Nf3 {[%clk 0:03:00]}  e6 {[%clk 0:02:51]} 6. Be2 {[%clk 0:02:59]}  Nc6 {[%clk 0:02:51]} 7. O-O {[%clk 0:02:57]}  Be7 {[%clk 0:02:51]} 8. Bg5 {[%clk 0:02:43]}  O-O {[%clk 0:02:50]} 9. Na3 {[%clk 0:02:23]}  b6 {[%clk 0:02:44]} 10. Nc2 {[%clk 0:01:55]}  Bb7 {[%clk 0:02:30]} 11. dxc5 {[%clk 0:01:45]}  Qxc5 {[%clk 0:02:17]} 12. Be3 {[%clk 0:01:33]}  Qd5 {[%clk 0:02:10]} 13. Qxd5 {[%clk 0:01:21]}  Nxd5 {[%clk 0:02:11]} 14. Rfd1 {[%clk 0:01:21]}  Rfd8 {[%clk 0:02:09]} 15. Bg5 {[%clk 0:01:18]}  f6 {[%clk 0:02:08]} 16. Bh4 {[%clk 0:01:18]}  Rac8 {[%clk 0:02:08]} 17. Ncd4 {[%clk 0:01:10]}  Nxd4 {[%clk 0:02:04]} 18. Rxd4 {[%clk 0:01:11]}  Bc5 {[%clk 0:02:02]} 19. Rd2 {[%clk 0:01:06]}  Nf4 {[%clk 0:02:02]} 20. Rxd8+ {[%clk 0:00:29]}  Rxd8 {[%clk 0:02:00]} 21. Kf1 {[%clk 0:00:29]}  Nxe2 {[%clk 0:01:19]} 22. Kxe2 {[%clk 0:00:29]}  Bxf3+ {[%clk 0:01:20]} 23. gxf3 {[%clk 0:00:23]}  e5 {[%clk 0:01:20]} 24. Bg3 {[%clk 0:00:21]}  g5 {[%clk 0:01:20]} 25. h4 {[%clk 0:00:19]}  h6 {[%clk 0:01:20]} 26. hxg5 {[%clk 0:00:19]}  hxg5 {[%clk 0:01:21]} 27. Bh2 {[%clk 0:00:16]}  Kf7 {[%clk 0:01:17]} 28. Rg1 {[%clk 0:00:15]}  Ke6 {[%clk 0:01:12]} 29. Rg4 {[%clk 0:00:14]}  Kf5 {[%clk 0:01:07]} 30. Re4 {[%clk 0:00:10]}  Rh8 {[%clk 0:01:07]} 31. Bg3 {[%clk 0:00:09]}  Rh1 {[%clk 0:01:06]} 32. b4 {[%clk 0:00:09]}  Bd6 {[%clk 0:01:01]} 33. a4 {[%clk 0:00:09]}  Ra1 {[%clk 0:00:52]} 34. b5 {[%clk 0:00:09]}  Bc5 {[%clk 0:00:51]} 35. Rc4 {[%clk 0:00:08]}  Ra2+ {[%clk 0:00:48]} 36. Kf1 {[%clk 0:00:08]}  Rc2 {[%clk 0:00:48]} 37. Kg2 {[%clk 0:00:07]}  Ke6 {[%clk 0:00:47]} 38. Rg4 {[%clk 0:00:06]}  Rxc3 {[%clk 0:00:42]} 39. Bh2 {[%clk 0:00:06]}  Rc2 {[%clk 0:00:37]} 40. Bg1 {[%clk 0:00:06]}  Rb2 {[%clk 0:00:36]} 41. Rc4 {[%clk 0:00:06]}  Kd5 {[%clk 0:00:30]} 42. Rc1 {[%clk 0:00:06]}  Rb4 {[%clk 0:00:23]} 43. Rd1+ {[%clk 0:00:06]}  Bd4 {[%clk 0:00:22]} 44. Ra1 {[%clk 0:00:07]}  Bxa1 {[%clk 0:00:21]} 0-1


[Site "https://www.chess.com"]

[Event "Titled Tuesday Blitz November 15 Early 2022"]
[White "Budrewicz, Krzysztof"]
[Black "Gheorghiu, Calin"]
[WhiteFideId "1127950"]
[BlackFideId "1200305"]
[WhiteElo "2187"]
[BlackElo "2225"]
[Result "0-1"]
[Round "07"]
[TimeControl "180+1"]
[Date "2022.11.16"]
[WhiteClock "0:00:03"]
[BlackClock "0:00:15"]

1. d4 {[%clk 0:03:00]}  Nf6 {[%clk 0:02:59]} 2. c4 {[%clk 0:03:00]}  e6 {[%clk 0:02:59]} 3. Nf3 {[%clk 0:03:00]}  Bb4+ {[%clk 0:02:55]} 4. Bd2 {[%clk 0:03:00]}  Qe7 {[%clk 0:02:54]} 5. g3 {[%clk 0:03:00]}  O-O {[%clk 0:02:52]} 6. Bg2 {[%clk 0:03:00]}  Bxd2+ {[%clk 0:02:50]} 7. Qxd2 {[%clk 0:03:00]}  d6 {[%clk 0:02:51]} 8. O-O {[%clk 0:03:00]}  e5 {[%clk 0:02:47]} 9. Nc3 {[%clk 0:02:59]}  c6 {[%clk 0:02:42]} 10. Rad1 {[%clk 0:02:54]}  e4 {[%clk 0:02:40]} 11. Ne1 {[%clk 0:02:53]}  d5 {[%clk 0:02:41]} 12. cxd5 {[%clk 0:02:51]}  cxd5 {[%clk 0:02:41]} 13. Nc2 {[%clk 0:02:51]}  Nc6 {[%clk 0:02:40]} 14. Ne3 {[%clk 0:02:46]}  Rd8 {[%clk 0:02:39]} 15. h3 {[%clk 0:02:44]}  Be6 {[%clk 0:02:35]} 16. Rc1 {[%clk 0:02:42]}  Rac8 {[%clk 0:02:33]} 17. Rfd1 {[%clk 0:02:37]}  Qd7 {[%clk 0:02:20]} 18. Kh2 {[%clk 0:02:36]}  Ne7 {[%clk 0:02:11]} 19. b4 {[%clk 0:02:31]}  h5 {[%clk 0:02:09]} 20. Qb2 {[%clk 0:02:13]}  h4 {[%clk 0:02:05]} 21. Qa3 {[%clk 0:01:38]}  a6 {[%clk 0:01:47]} 22. Qa4 {[%clk 0:01:35]}  Qd6 {[%clk 0:01:42]} 23. Qb3 {[%clk 0:01:21]}  Nh5 {[%clk 0:01:17]} 24. Nf1 {[%clk 0:01:18]}  Nf5 {[%clk 0:01:13]} 25. Na4 {[%clk 0:01:14]}  e3 {[%clk 0:01:07]} 26. Rxc8 {[%clk 0:01:03]}  Rxc8 {[%clk 0:00:59]} 27. Nxe3 {[%clk 0:00:38]}  hxg3+ {[%clk 0:00:39]} 28. Kh1 {[%clk 0:00:38]}  gxf2 {[%clk 0:00:38]} 29. Nxf5 {[%clk 0:00:39]}  Bxf5 {[%clk 0:00:37]} 30. Bf3 {[%clk 0:00:20]}  Bc2 {[%clk 0:00:24]} 31. Qe3 {[%clk 0:00:05]}  Bxd1 {[%clk 0:00:18]} 32. Qxf2 {[%clk 0:00:02]}  Ng3+ {[%clk 0:00:16]} 33. Kg2 {[%clk 0:00:02]}  Bxa4 {[%clk 0:00:14]} 34. Qxg3 {[%clk 0:00:02]}  Qxg3+ {[%clk 0:00:14]} 35. Kxg3 {[%clk 0:00:03]}  Rc2 {[%clk 0:00:13]} 36. a3 {[%clk 0:00:03]}  Bc6 {[%clk 0:00:13]} 37. Kf4 {[%clk 0:00:03]}  Rc3 {[%clk 0:00:14]} 38. Ke5 {[%clk 0:00:03]}  Rxa3 {[%clk 0:00:14]} 39. Kd6 {[%clk 0:00:03]}  Rxf3 {[%clk 0:00:14]} 40. exf3 {[%clk 0:00:03]}  Kf8 {[%clk 0:00:15]} 41. f4 {[%clk 0:00:03]}  Ke8 {[%clk 0:00:15]} 42. h4 {[%clk 0:00:03]} 0-1


[Site "https://www.chess.com"]

[Event "Titled Tuesday Blitz November 15 Early 2022"]
[White "Buscar, Michael"]
[Black "Flis, Pawel"]
[WhiteFideId "2603616"]
[BlackFideId "1112864"]
[WhiteElo "2010"]
[BlackElo "1817"]
[Result "1-0"]
[Round "07"]
[TimeControl "180+1"]
[Date "2022.11.16"]
[WhiteClock "0:00:01"]
[BlackClock "0:00:02"]

1. d4 {[%clk 0:03:00]}  c5 {[%clk 0:02:54]} 2. e3 {[%clk 0:02:59]}  Nf6 {[%clk 0:02:53]} 3. Nf3 {[%clk 0:02:59]}  g6 {[%clk 0:02:52]} 4. Be2 {[%clk 0:02:57]}  Bg7 {[%clk 0:02:52]} 5. O-O {[%clk 0:02:57]}  O-O {[%clk 0:02:52]} 6. c3 {[%clk 0:02:56]}  b6 {[%clk 0:02:51]} 7. a3 {[%clk 0:02:56]}  d6 {[%clk 0:02:49]} 8. b4 {[%clk 0:02:56]}  Bb7 {[%clk 0:02:43]} 9. Bb2 {[%clk 0:02:55]}  Nbd7 {[%clk 0:02:38]} 10. Nbd2 {[%clk 0:02:55]}  Rc8 {[%clk 0:02:36]} 11. a4 {[%clk 0:02:48]}  cxb4 {[%clk 0:02:28]} 12. cxb4 {[%clk 0:02:48]}  Nd5 {[%clk 0:02:25]} 13. Qb3 {[%clk 0:02:46]}  N7f6 {[%clk 0:02:20]} 14. a5 {[%clk 0:02:42]}  Qd7 {[%clk 0:02:15]} 15. a6 {[%clk 0:02:41]}  Ba8 {[%clk 0:02:11]} 16. b5 {[%clk 0:02:38]}  Rc7 {[%clk 0:02:02]} 17. Rfc1 {[%clk 0:02:34]}  Rfc8 {[%clk 0:02:02]} 18. Ng5 {[%clk 0:02:20]}  h6 {[%clk 0:01:58]} 19. Nge4 {[%clk 0:01:51]}  Nxe4 {[%clk 0:01:56]} 20. Nxe4 {[%clk 0:01:51]}  Nf4 {[%clk 0:01:41]} 21. Bf3 {[%clk 0:01:43]}  Bxe4 {[%clk 0:01:30]} 22. Rxc7 {[%clk 0:01:40]}  Qxc7 {[%clk 0:01:22]} 23. Bxe4 {[%clk 0:01:41]}  Ne6 {[%clk 0:01:05]} 24. Bc6 {[%clk 0:01:39]}  Nd8 {[%clk 0:01:02]} 25. Rc1 {[%clk 0:01:39]}  Qb8 {[%clk 0:00:47]} 26. d5 {[%clk 0:01:34]}  Bxb2 {[%clk 0:00:42]} 27. Qxb2 {[%clk 0:01:34]}  f6 {[%clk 0:00:37]} 28. Qb1 {[%clk 0:01:23]}  Kg7 {[%clk 0:00:37]} 29. e4 {[%clk 0:01:23]}  Nf7 {[%clk 0:00:34]} 30. f4 {[%clk 0:01:22]}  g5 {[%clk 0:00:31]} 31. g3 {[%clk 0:01:22]}  h5 {[%clk 0:00:26]} 32. Kf2 {[%clk 0:01:21]}  gxf4 {[%clk 0:00:18]} 33. gxf4 {[%clk 0:01:21]}  Kh6 {[%clk 0:00:17]} 34. Rg1 {[%clk 0:01:18]}  Rg8 {[%clk 0:00:17]} 35. Qd1 {[%clk 0:01:10]}  Qc8 {[%clk 0:00:12]} 36. f5 {[%clk 0:00:44]}  Qf8 {[%clk 0:00:11]} 37. Bd7 {[%clk 0:00:17]}  Ne5 {[%clk 0:00:10]} 38. Be6 {[%clk 0:00:16]}  Rxg1 {[%clk 0:00:06]} 39. Qxg1 {[%clk 0:00:16]}  Qg7 {[%clk 0:00:06]} 40. Qc1+ {[%clk 0:00:06]}  Qg5 {[%clk 0:00:04]} 41. Qc8 {[%clk 0:00:06]}  Qf4+ {[%clk 0:00:03]} 42. Ke1 {[%clk 0:00:05]}  Qxe4+ {[%clk 0:00:03]} 43. Kd1 {[%clk 0:00:06]}  Qd3+ {[%clk 0:00:03]} 44. Kc1 {[%clk 0:00:06]}  Kg5 {[%clk 0:00:03]} 45. Qg8+ {[%clk 0:00:05]}  Kf4 {[%clk 0:00:02]} 46. Qg2 {[%clk 0:00:04]}  Qc3+ {[%clk 0:00:02]} 47. Kb1 {[%clk 0:00:04]}  Nf3 {[%clk 0:00:02]} 48. Qg3+ {[%clk 0:00:04]}  Ke3 {[%clk 0:00:02]} 49. Bd7 {[%clk 0:00:01]} 1-0


[Site "https://www.chess.com"]

[Event "Titled Tuesday Blitz November 15 Early 2022"]
[White "Corrales Jimenez, Fidel"]
[Black "Kosteniuk, Alexandra"]
[WhiteFideId "3506690"]
[BlackFideId "4128125"]
[WhiteElo "2541"]
[BlackElo "2469"]
[Result "0-1"]
[Round "07"]
[TimeControl "180+1"]
[Date "2022.11.16"]
[WhiteClock "0:00:16"]
[BlackClock "0:00:54"]

1. e4 {[%clk 0:01:41]}  e5 {[%clk 0:02:59]} 2. Nf3 {[%clk 0:01:40]}  Nf6 {[%clk 0:02:59]} 3. Nxe5 {[%clk 0:01:39]}  d6 {[%clk 0:02:59]} 4. Nf3 {[%clk 0:01:40]}  Nxe4 {[%clk 0:02:59]} 5. Nc3 {[%clk 0:01:41]}  Nxc3 {[%clk 0:02:59]} 6. dxc3 {[%clk 0:01:42]}  Be7 {[%clk 0:03:00]} 7. Be3 {[%clk 0:01:43]}  Nd7 {[%clk 0:02:59]} 8. Qd2 {[%clk 0:01:43]}  Nf6 {[%clk 0:02:59]} 9. O-O-O {[%clk 0:01:44]}  O-O {[%clk 0:03:00]} 10. Bd3 {[%clk 0:01:39]}  c5 {[%clk 0:02:59]} 11. Kb1 {[%clk 0:01:38]}  b5 {[%clk 0:02:59]} 12. Bxb5 {[%clk 0:01:37]}  Rb8 {[%clk 0:02:57]} 13. Ba4 {[%clk 0:01:30]}  Be6 {[%clk 0:02:52]} 14. b3 {[%clk 0:01:22]}  Qa5 {[%clk 0:02:41]} 15. Ka1 {[%clk 0:01:19]}  Ne4 {[%clk 0:02:41]} 16. Qe1 {[%clk 0:01:16]}  Bf6 {[%clk 0:02:37]} 17. Rd3 {[%clk 0:01:10]}  Bxc3+ {[%clk 0:02:34]} 18. Rxc3 {[%clk 0:01:09]}  Qxc3+ {[%clk 0:02:32]} 19. Qxc3 {[%clk 0:01:08]}  Nxc3 {[%clk 0:02:33]} 20. Bc6 {[%clk 0:01:04]}  Rb6 {[%clk 0:02:32]} 21. Bd2 {[%clk 0:01:00]}  Nxa2 {[%clk 0:02:25]} 22. Kxa2 {[%clk 0:00:59]}  Rxc6 {[%clk 0:02:24]} 23. Kb2 {[%clk 0:01:00]}  Ra6 {[%clk 0:02:19]} 24. Bf4 {[%clk 0:00:55]}  Rb8 {[%clk 0:02:16]} 25. Rd1 {[%clk 0:00:54]}  Rbb6 {[%clk 0:02:16]} 26. Ng5 {[%clk 0:00:50]}  c4 {[%clk 0:02:03]} 27. b4 {[%clk 0:00:44]}  Rxb4+ {[%clk 0:01:59]} 28. Kc3 {[%clk 0:00:44]}  Rbb6 {[%clk 0:01:58]} 29. Ne4 {[%clk 0:00:44]}  Ra3+ {[%clk 0:01:54]} 30. Kd4 {[%clk 0:00:44]}  Rb5 {[%clk 0:01:45]} 31. Nc3 {[%clk 0:00:42]}  Rb6 {[%clk 0:01:31]} 32. Re1 {[%clk 0:00:40]}  h6 {[%clk 0:01:30]} 33. h4 {[%clk 0:00:39]}  Ra5 {[%clk 0:01:27]} 34. f3 {[%clk 0:00:38]}  Rb2 {[%clk 0:01:12]} 35. Re2 {[%clk 0:00:34]}  Ra1 {[%clk 0:01:08]} 36. Bxd6 {[%clk 0:00:32]}  Rc1 {[%clk 0:01:07]} 37. Ba3 {[%clk 0:00:30]}  Rbxc2 {[%clk 0:01:07]} 38. Bxc1 {[%clk 0:00:30]}  Rxc1 {[%clk 0:01:08]} 39. Ra2 {[%clk 0:00:29]}  Rh1 {[%clk 0:01:07]} 40. g3 {[%clk 0:00:28]}  Rh3 {[%clk 0:01:03]} 41. Ne4 {[%clk 0:00:26]}  Rh1 {[%clk 0:00:58]} 42. Rxa7 {[%clk 0:00:24]}  Rd1+ {[%clk 0:00:58]} 43. Ke5 {[%clk 0:00:23]}  Rd3 {[%clk 0:00:55]} 44. f4 {[%clk 0:00:16]}  Rd5# {[%clk 0:00:54]} 0-1


[Site "https://www.chess.com"]